fUST/lending_fUST_20250921
["ID","MTS","AMOUNT","RATE_DAILY","PERIOD"]
[386565415,1758396655016,-151.0,0.00021145,2]
[386565416,1758396655025,-151.0,0.00021145,2]
[386565417,1758396655034,-151.0,0.00021145,2]
[386565418,1758396655044,-1121.74,0.00021145,2]
[386565419,1758396655053,-1155.74,0.00021145,2]
[386565420,1758396655062,-1155.74,0.00021145,2]
[386565421,1758396655072,-1155.74,0.00021145,2]
[386565422,1758396655081,-1155.74,0.00021145,2]
[386565423,1758396655090,-1155.90622398,0.00021145,2]
[386565424,1758396655099,-166.913774,0.00021146,2]
[386565425,1758396655108,-166.913774,0.00021146,2]
[386565426,1758396655117,-166.913774,0.00021146,2]
[386565427,1758396655126,-166.913774,0.00021146,2]
[386565428,1758396655135,-226.565001,0.00021146,2]
[386565429,1758396655144,-157.521823,0.00021146,2]
[386565430,1758396655152,-151.0,0.00021146,2]
[386565431,1758396655161,-151.0,0.00021146,2]
[386565432,1758396655170,-151.0,0.00021146,2]
[386565433,1758396655180,-480.0,0.00021147,2]
[386565434,1758396655190,-1023.93,0.00021147,2]
[386565435,1758396655199,-1929.05,0.00021149,2]
[386565436,1758396655208,-480.0,0.00021149,2]
[386565437,1758396655217,-11585.98,0.00021149,2]
[386565438,1758396655226,-525.68,0.00021149,2]
[386565439,1758396655235,-1133.95,0.00021149,2]
[386565440,1758396655244,-480.0,0.0002115,2]
[386565441,1758396655254,-192.7096624,0.0002115,2]
[386565442,1758396655262,-500.0,0.0002115,2]
[386565443,1758396655272,-219.81033905,0.0002115,2]
[386565444,1758396655281,-480.0,0.0002115,2]
[386565445,1758396655290,-480.0,0.0002115,2]
[386565446,1758396655299,-480.0,0.0002115,2]
[386565447,1758396655309,-480.0,0.0002115,2]
[386565448,1758396655318,-441.75491118,0.0002115,2]
[386565449,1758396655327,-480.0,0.0002115,2]
[386565450,1758396655337,-168.58402945,0.0002118,2]
[386565451,1758396655346,-168.0,0.00021221,2]
[386565452,1758396655356,-168.0,0.00021242,2]
[386565453,1758396655365,-480.0,0.00021312,2]
[386565454,1758396655375,-480.0,0.00021312,2]
[386565455,1758396655384,-1224.38,0.00021312,2]
[386565456,1758396655395,-480.0,0.00021312,2]
[386565457,1758396655404,-520.47807944,0.00021318,2]
[386565458,1758396655414,-9379.65841723,0.00021323,2]
[386565459,1758396655424,-1926.752544,0.000214,5]
[386565460,1758396655433,-582.20916226,0.00021408,2]
[386565461,1758396655443,-1240.95,0.00021413,2]
[386565462,1758396655452,-480.0,0.00021413,2]
[386565463,1758396655462,-948.77,0.00021413,2]
[386565464,1758396655471,-1165.74,0.00021413,2]
[386565465,1758396655482,-480.0,0.00021413,2]
[386565466,1758396655492,-1249.23,0.00021413,2]
[386565467,1758396655502,-480.0,0.00021413,2]
[386565468,1758396655511,-480.0,0.00021413,2]
[386565469,1758396655521,-480.0,0.00021413,2]
[386565470,1758396655530,-470.75255859,0.00021413,2]
[386565471,1758396655539,-689.85,0.00021413,2]
[386565472,1758396655549,-480.0,0.00021413,2]
[386565473,1758396655558,-2316.08,0.00021413,2]
[386565474,1758396655568,-480.0,0.00021413,2]
[386565475,1758396655578,-480.0,0.00021413,2]
[386565476,1758396655587,-480.0,0.00021414,2]
[386565477,1758396655596,-480.0,0.00021414,2]
[386565478,1758396655606,-480.0,0.00021414,2]
[386565479,1758396655615,-480.0,0.00021414,2]
[386565480,1758396655692,-480.0,0.00021414,2]
[386565481,1758396655702,-297.05052924,0.00021414,2]
[386565482,1758396655711,-480.0,0.00021414,2]
[386565483,1758396655721,-480.0,0.00021414,2]
[386565484,1758396655731,-480.0,0.00021414,2]
[386565485,1758396655740,-1187.76,0.00021414,2]
[386565486,1758396655750,-480.0,0.00021414,2]
[386565487,1758396655759,-480.0,0.00021414,2]
[386565488,1758396655768,-480.0,0.00021414,2]
[386565489,1758396655777,-480.0,0.00021414,2]
[386565490,1758396655788,-480.0,0.00021414,2]
[386565491,1758396655797,-1337.61,0.00021414,2]
[386565492,1758396655807,-1131.22,0.00021414,2]
[386565493,1758396655817,-480.0,0.00021414,2]
[386565494,1758396655827,-2275.56,0.00021415,2]
[386565495,1758396655837,-1323.41,0.00021415,2]
[386565496,1758396655847,-818.22,0.00021415,2]
[386565497,1758396655857,-1911.96,0.00021415,2]
[386565498,1758396655867,-480.0,0.00021416,2]
[386565499,1758396655877,-1163.01,0.00021416,2]
[386565500,1758396655887,-480.0,0.00021416,2]
[386565501,1758396655897,-480.0,0.00021416,2]
[386565502,1758396655906,-354.56,0.00021416,2]
[386565503,1758396655916,-554.8,0.00021416,2]
[386565504,1758396655925,-480.0,0.00021416,2]
[386565505,1758396655935,-480.0,0.00021416,2]
[386565506,1758396655944,-860.5,0.00021416,2]
[386565507,1758396655955,-685.6,0.00021417,2]
[386565508,1758396655965,-552.29,0.00021417,2]
[386565509,1758396655976,-166.913774,0.00021417,2]
[386565510,1758396655985,-166.913774,0.00021417,2]
[386565511,1758396655994,-166.913774,0.00021417,2]
[386565512,1758396656004,-166.913774,0.00021417,2]
[386565513,1758396656014,-480.0,0.00021417,2]
[386565514,1758396656024,-480.0,0.00021417,2]
[386565515,1758396656034,-283.14911918,0.00021417,2]
[386565516,1758396656044,-480.0,0.00021417,2]
[386565517,1758396656055,-480.0,0.00021417,2]
[386565518,1758396656065,-480.0,0.00021417,2]
[386565519,1758396656075,-1121.74,0.00021419,2]
[386565520,1758396656084,-1000.0,0.0002142,5]
[386565521,1758396656094,-1000.0,0.00021421,2]
[386565522,1758396656103,-1000.0,0.00021421,2]
[386565523,1758396656113,-1000.0,0.00021421,2]
[386565524,1758396656122,-1000.0,0.00021421,2]
[386565525,1758396656132,-500.0,0.00021421,2]
[386565526,1758396656142,-1000.0,0.00021421,2]
[386565527,1758396656151,-508.65777358,0.00021421,2]
[386565528,1758396656160,-1000.0,0.00021421,2]
[386565529,1758396656170,-406.13525957,0.00021421,2]
[386565530,1758396656180,-1000.0,0.00021421,2]
[386565531,1758396656189,-509.6002458,0.00021421,2]
[386565532,1758396656199,-1000.0,0.00021421,2]
[386565533,1758396656209,-1003.94153345,0.00021421,2]
[386565534,1758396656218,-1000.0,0.00021421,2]
[386565535,1758396656228,-1000.0,0.00021421,2]
[386565536,1758396656238,-1023.93,0.00021421,2]
[386565537,1758396656248,-1929.05,0.00021423,2]
[386565538,1758396656257,-285.47,0.00021423,2]
[386565539,1758396656267,-11585.98,0.00021423,2]
[386565540,1758396656276,-525.68,0.00021423,2]
[386565541,1758396656285,-1133.95,0.00021423,2]
[386565542,1758396656294,-480.0,0.00021424,2]
[386565543,1758396656304,-480.0,0.00021424,2]
[386565544,1758396656313,-500.0,0.00021435,2]
[386565545,1758396656323,-575.25942439,0.00021435,2]
[386565546,1758396656332,-500.0,0.00021435,2]
[386565547,1758396656342,-500.0,0.00021435,2]
[386565548,1758396656352,-1000.0,0.0002144,5]
[386565549,1758396656361,-151.0,0.00021444,2]
[386565550,1758396656371,-151.0,0.00021444,2]
[386565551,1758396656380,-151.0,0.00021444,2]
[386565552,1758396656390,-151.0,0.00021444,2]
[386565553,1758396656399,-151.0,0.00021444,2]
[386565554,1758396656409,-151.0,0.00021444,2]
[386565555,1758396656418,-151.0,0.00021444,2]
[386565556,1758396656427,-151.0,0.00021444,2]
[386565557,1758396656437,-152.30656426,0.00021444,2]
[386565558,1758396656446,-151.0,0.00021444,2]
[386565559,1758396656457,-207.76084726,0.00021444,2]
[386565560,1758396656466,-151.0,0.00021444,2]
[386565561,1758396656475,-151.0,0.00021444,2]
[386565562,1758396656484,-151.51217291,0.00021444,2]
[386565563,1758396656494,-151.0,0.00021444,2]
[386565564,1758396656504,-500.0,0.00021444,2]
[386565565,1758396656513,-151.0,0.00021444,2]
[386565566,1758396656523,-500.0,0.00021444,2]
[386565567,1758396656532,-151.0,0.00021444,2]
[386565568,1758396656542,-151.0,0.00021444,2]
[386565569,1758396656551,-192.16542769,0.00021444,2]
[386565570,1758396656560,-151.0,0.00021444,2]
[386565571,1758396656569,-151.0,0.00021444,2]
[386565572,1758396656578,-151.0,0.00021444,2]
[386565573,1758396656588,-163.0,0.00021444,2]
[386565574,1758396656597,-1000.0,0.0002146,5]
[386565575,1758396656607,-1000.0,0.0002148,5]
[386565576,1758396656616,-1000.0,0.000215,5]
[386565577,1758396656625,-150.0,0.000215,10]
[386565578,1758396656635,-1000.0,0.0002152,5]
[386565579,1758396656645,-1000.0,0.0002154,5]
[386565580,1758396656655,-265.0,0.00021556,2]
[386565581,1758396656664,-1000.0,0.0002156,5]
[386565582,1758396656674,-160.0,0.00021573,2]
[386565583,1758396656683,-500.0,0.00021578,2]
[386565584,1758396656692,-1000.0,0.0002158,5]
[386565585,1758396656702,-480.0,0.00021586,2]
[386565586,1758396656711,-1224.38,0.00021586,2]
[386565587,1758396656721,-480.0,0.00021586,2]
[386565588,1758396656731,-520.47807944,0.00021593,2]
[386565589,1758396656740,-2000.0,0.000216,2]
[386565590,1758396656749,-1000.0,0.000216,5]
[386565591,1758396656759,-168.0,0.00021616,2]
[386565592,1758396656768,-368.0,0.00021647,2]
[386565593,1758396656778,-243.20791565,0.00021653,2]
[386565594,1758396656788,-683.7300175,0.00021654,2]
[386565595,1758396656797,-490.18785629,0.00021668,2]
[386565596,1758396656807,-1500.0,0.00021668,2]
[386565597,1758396656817,-344.50483429,0.00021668,2]
[386565598,1758396656826,-1500.0,0.00021668,2]
[386565599,1758396656835,-1000.0,0.00021668,2]
[386565600,1758396656844,-1240.95,0.00021687,2]
[386565601,1758396656853,-480.0,0.00021687,2]
[386565602,1758396656863,-948.77,0.00021687,2]
[386565603,1758396656872,-1165.74,0.00021687,2]
[386565604,1758396656882,-480.0,0.00021687,2]
[386565605,1758396656891,-1249.23,0.00021687,2]
[386565606,1758396656900,-480.0,0.00021687,2]
[386565607,1758396656909,-480.0,0.00021687,2]
[386565608,1758396656918,-480.0,0.00021687,2]
[386565609,1758396656927,-689.85,0.00021687,2]
[386565610,1758396657000,-213.98,0.00021687,2]
[386565611,1758396657011,-2316.08,0.00021687,2]
[386565612,1758396657020,-480.0,0.00021687,2]
[386565613,1758396657029,-480.0,0.00021687,2]
[386565614,1758396657039,-480.0,0.00021688,2]
[386565615,1758396657049,-480.0,0.00021688,2]
[386565616,1758396657058,-480.0,0.00021688,2]
[386565617,1758396657067,-480.0,0.00021688,2]
[386565618,1758396657076,-480.0,0.00021688,2]
[386565619,1758396657085,-480.0,0.00021688,2]
[386565620,1758396657094,-480.0,0.00021688,2]
[386565621,1758396657103,-480.0,0.00021688,2]
[386565622,1758396657112,-1187.76,0.00021688,2]
[386565623,1758396657121,-480.0,0.00021688,2]
[386565624,1758396657131,-480.0,0.00021688,2]
[386565625,1758396657140,-480.0,0.00021688,2]
[386565626,1758396657149,-480.0,0.00021688,2]
[386565627,1758396657158,-480.0,0.00021688,2]
[386565628,1758396657167,-1337.61,0.00021688,2]
[386565629,1758396657176,-1131.22,0.00021688,2]
[386565630,1758396657185,-480.0,0.00021688,2]
[386565631,1758396657195,-2275.56,0.00021689,2]
[386565632,1758396657204,-1323.41,0.00021689,2]
[386565633,1758396657213,-818.22,0.00021689,2]
[386565634,1758396657222,-1911.96,0.00021689,2]
[386565635,1758396657231,-1163.01,0.0002169,2]
[386565636,1758396657240,-480.0,0.0002169,2]
[386565637,1758396657249,-480.0,0.0002169,2]
[386565638,1758396657257,-554.8,0.0002169,2]
[386565639,1758396657266,-480.0,0.0002169,2]
[386565640,1758396657276,-860.5,0.0002169,2]
[386565641,1758396657285,-685.6,0.00021691,2]
[386565642,1758396657294,-480.0,0.00021691,2]
[386565643,1758396657303,-480.0,0.00021691,2]
[386565644,1758396657312,-480.0,0.00021691,2]
[386565645,1758396657321,-1121.74,0.00021693,2]
[386565646,1758396657330,-1929.05,0.00021697,2]
[386565647,1758396657338,-11585.98,0.00021697,2]
[386565648,1758396657347,-525.68,0.00021697,2]
[386565649,1758396657356,-1133.95,0.00021697,2]
[386565650,1758396657365,-480.0,0.00021698,2]
[386565651,1758396657374,-480.0,0.00021698,2]
[386565652,1758396657384,-151.0,0.00021718,2]
[386565653,1758396657393,-151.0,0.00021718,2]
[386565654,1758396657402,-500.0,0.00021718,2]
[386565655,1758396657411,-297.01791068,0.00021718,2]
[386565656,1758396657421,-500.0,0.00021718,2]
[386565657,1758396657430,-1300.0,0.00021782,2]
[386565658,1758396657440,-1000.0,0.000218,5]
[386565659,1758396657450,-1500.0,0.000218,2]
[386565660,1758396657459,-1500.0,0.000218,2]
[386565661,1758396657468,-1500.0,0.000218,2]
[386565662,1758396657477,-1500.0,0.000218,2]
[386565663,1758396657486,-1500.0,0.000218,2]
[386565664,1758396657495,-1500.0,0.000218,2]
[386565665,1758396657504,-1500.0,0.000218,2]
[386565666,1758396657514,-1500.0,0.000218,2]
[386565667,1758396657523,-1897.44,0.000218,2]
[386565668,1758396657532,-1500.0,0.000218,2]
[386565669,1758396657542,-1500.0,0.000218,2]
[386565670,1758396657551,-168.0,0.00021821,2]
[386565671,1758396657560,-176.0,0.00021836,2]
[386565672,1758396657569,-1024.7081264,0.00021843,2]
[386565673,1758396657579,-480.0,0.0002186,2]
[386565674,1758396657588,-1224.38,0.0002186,2]
[386565675,1758396657597,-480.0,0.0002186,2]
[386565676,1758396657607,-600.0,0.00021869,20]
[386565677,1758396657615,-2000.0,0.000219,2]
[386565678,1758396657625,-300.06451244,0.00021911,2]
[386565679,1758396657635,-3074.834,0.00021911,2]
[386565680,1758396657644,-152.5607883,0.00021913,2]
[386565681,1758396657653,-500.0,0.00021917,2]
[386565682,1758396657663,-500.0,0.00021917,2]
[386565683,1758396657672,-500.0,0.00021917,2]
[386565684,1758396657681,-500.0,0.00021917,2]
[386565685,1758396657691,-500.0,0.00021917,2]
[386565686,1758396657700,-151.0,0.00021918,2]
[386565687,1758396657711,-151.0,0.00021918,2]
[386565688,1758396657721,-151.0,0.00021918,2]
[386565689,1758396657731,-151.0,0.00021918,2]
[386565690,1758396657743,-151.0,0.00021918,2]
[386565691,1758396657753,-151.0,0.00021918,2]
[386565692,1758396657762,-151.0,0.00021918,2]
[386565693,1758396657772,-151.0,0.00021918,2]
[386565694,1758396657781,-151.0,0.00021918,2]
[386565695,1758396657790,-151.0,0.00021918,2]
[386565696,1758396657800,-151.0,0.00021918,2]
[386565697,1758396657809,-151.0,0.00021918,2]
[386565698,1758396657819,-151.0,0.00021918,2]
[386565699,1758396657828,-151.0,0.00021918,2]
[386565700,1758396657837,-151.0,0.00021918,2]
[386565701,1758396657846,-151.0,0.00021918,2]
[386565702,1758396657855,-151.0,0.00021918,2]
[386565703,1758396657864,-151.0,0.00021918,2]
[386565704,1758396657874,-151.0,0.00021918,2]
[386565705,1758396657884,-152.79405582,0.00021918,2]
[386565706,1758396657893,-174.17789646,0.00021918,2]
[386565707,1758396657903,-151.0,0.00021918,2]
[386565708,1758396657912,-151.0,0.00021918,2]
[386565709,1758396657921,-151.0,0.00021918,2]
[386565710,1758396657931,-151.0,0.00021918,2]
[386565711,1758396657940,-151.0,0.00021918,2]
[386565712,1758396657949,-151.0,0.00021918,2]
[386565713,1758396657959,-151.0,0.00021918,2]
[386565714,1758396657973,-151.0,0.00021918,2]
[386565715,1758396657985,-151.0,0.00021918,2]
[386565716,1758396657994,-256.64587048,0.00021918,2]
[386565717,1758396658003,-151.0,0.00021918,2]
[386565718,1758396658013,-151.0,0.00021918,2]
[386565719,1758396658023,-151.0,0.00021918,2]
[386565720,1758396658033,-3430.9142051,0.00021953,2]
[386565721,1758396658042,-1087.08,0.00021954,3]
[386565722,1758396658051,-543.54,0.00021954,3]
[386565723,1758396658060,-1240.95,0.00021961,2]
[386565724,1758396658069,-480.0,0.00021961,2]
[386565725,1758396658079,-948.77,0.00021961,2]
[386565726,1758396658088,-1165.74,0.00021961,2]
[386565727,1758396658097,-1249.23,0.00021961,2]
[386565728,1758396658106,-480.0,0.00021961,2]
[386565729,1758396658175,-480.0,0.00021961,2]
[386565730,1758396658185,-689.85,0.00021961,2]
[386565731,1758396658194,-2316.08,0.00021961,2]
[386565732,1758396658204,-480.0,0.00021961,2]
[386565733,1758396658213,-480.0,0.00021961,2]
[386565734,1758396658222,-480.0,0.00021962,2]
[386565735,1758396658231,-480.0,0.00021962,2]
[386565736,1758396658240,-480.0,0.00021962,2]
[386565737,1758396658249,-480.0,0.00021962,2]
[386565738,1758396658259,-480.0,0.00021962,2]
[386565739,1758396658268,-480.0,0.00021962,2]
[386565740,1758396658277,-480.0,0.00021962,2]
[386565741,1758396658287,-480.0,0.00021962,2]
[386565742,1758396658296,-1187.76,0.00021962,2]
[386565743,1758396658305,-480.0,0.00021962,2]
[386565744,1758396658314,-480.0,0.00021962,2]
[386565745,1758396658324,-480.0,0.00021962,2]
[386565746,1758396658333,-480.0,0.00021962,2]
[386565747,1758396658343,-480.0,0.00021962,2]
[386565748,1758396658352,-1337.61,0.00021962,2]
[386565749,1758396658361,-1131.22,0.00021962,2]
[386565750,1758396658372,-480.0,0.00021962,2]
[386565751,1758396658382,-2275.56,0.00021963,2]
[386565752,1758396658391,-1323.41,0.00021963,2]
[386565753,1758396658401,-818.22,0.00021963,2]
[386565754,1758396658410,-1911.96,0.00021963,2]
[386565755,1758396658419,-1163.01,0.00021964,2]
[386565756,1758396658428,-480.0,0.00021964,2]
[386565757,1758396658438,-480.0,0.00021964,2]
[386565758,1758396658447,-500.0,0.00021964,2]
[386565759,1758396658456,-554.8,0.00021964,2]
[386565760,1758396658465,-480.0,0.00021964,2]
[386565761,1758396658474,-860.5,0.00021964,2]
[386565762,1758396658484,-685.6,0.00021965,2]
[386565763,1758396658494,-480.0,0.00021965,2]
[386565764,1758396658503,-480.0,0.00021965,2]
[386565765,1758396658512,-480.0,0.00021965,2]
[386565766,1758396658521,-1121.74,0.00021967,2]
[386565767,1758396658530,-1508.70507964,0.00021968,2]
[386565768,1758396658539,-1500.0,0.00021968,2]
[386565769,1758396658548,-500.0,0.00021968,2]
[386565770,1758396658557,-1500.0,0.00021968,2]
[386565771,1758396658567,-1500.0,0.00021968,2]
[386565772,1758396658576,-1236.89195217,0.00021968,2]
[386565773,1758396658585,-1500.0,0.00021968,2]
[386565774,1758396658594,-1500.0,0.00021968,2]
[386565775,1758396658603,-1500.0,0.00021968,2]
[386565776,1758396658613,-504.14783591,0.00021968,2]
[386565777,1758396658622,-1929.05,0.00021971,2]
[386565778,1758396658631,-11585.98,0.00021971,2]
[386565779,1758396658641,-525.68,0.00021971,2]
[386565780,1758396658654,-1133.95,0.00021971,2]
[386565781,1758396658664,-480.0,0.00021972,2]
[386565782,1758396658673,-480.0,0.00021972,2]
[386565783,1758396658682,-1000.0,0.00021983,2]
[386565784,1758396658691,-500.0,0.00021983,2]
[386565785,1758396658700,-1000.0,0.00021983,2]
[386565786,1758396658709,-176.0012702,0.00021992,2]
[386565787,1758396658719,-151.0,0.00021992,2]
[386565788,1758396658728,-500.0,0.00021992,2]
[386565789,1758396658737,-2217.28869963,0.00022,5]
[386565790,1758396658747,-5890.31,0.00022,7]
[386565791,1758396658756,-151.0,0.00022,3]
[386565792,1758396658766,-388.24,0.00022,2]
[386565793,1758396658776,-3245.50283422,0.00022044,2]
[386565794,1758396658785,-500.0,0.0002209,2]
[386565795,1758396658797,-601.08284645,0.0002209,2]
[386565796,1758396658807,-151.0,0.000221,6]
[386565797,1758396658817,-151.0,0.000221,6]
[386565798,1758396658827,-151.0,0.000221,5]
[386565799,1758396658836,-228.6432883,0.00022121,2]
[386565800,1758396658846,-260.0,0.00022121,2]
[386565801,1758396658855,-480.0,0.00022134,2]
[386565802,1758396658864,-1224.38,0.00022134,2]
[386565803,1758396658873,-480.0,0.00022134,2]
[386565804,1758396658883,-9102.37188275,0.00022135,2]
[386565805,1758396658893,-9379.65841723,0.00022135,2]
[386565806,1758396658902,-1196.66951415,0.000222,5]
[386565807,1758396658911,-200.0,0.00022204,2]
[386565808,1758396658921,-200.54387412,0.00022204,2]
[386565809,1758396658931,-4099.48515273,0.00022205,2]
[386565810,1758396658942,-53704.65878927,0.00022205,2]
[386565811,1758396658951,-150000.0,0.00022205,2]
[386565812,1758396658960,-53334.21755684,0.00022205,2]
[386565813,1758396658974,-2000.0,0.00022216,2]
[386565814,1758396658984,-2000.0,0.00022216,2]
[386565815,1758396658993,-133548.5889011,0.0002222,2]
[386565816,1758396659185,-104194.98045572,0.0002222,2]
[386565817,1758396659197,-29786.6138,0.0002222,2]
[386565818,1758396660362,-330.370848,0.00020595,2]
[386565819,1758396660371,-330.370848,0.00020601,2]
[386565820,1758396660459,224.31,0.00019219,2]
[386565821,1758396660582,448.62,0.00020134,2]
[386565822,1758396666282,-480.0,0.0002049,2]
[386565823,1758396666310,-300.0,0.00020491,2]
[386565824,1758396666373,-8440.01,0.00020492,2]
[386565825,1758396684584,-169.06629128,0.00020263,2]
[386565826,1758396686625,-318.43644454,0.00020263,2]
[386565827,1758396690530,-128.31261508,0.00020263,2]
[386565828,1758396696323,-480.0,0.0002049,2]
[386565829,1758396696352,-480.0,0.0002049,2]
[386565830,1758396696382,-1061.99768212,0.00020492,2]
[386565831,1758396696411,-272.37673377,0.00020583,2]
[386565832,1758396696438,-480.0,0.00020583,2]
[386565833,1758396696466,-438.59756577,0.00020583,2]
[386565834,1758396696495,-480.0,0.00020591,2]
[386565835,1758396696524,-480.0,0.00020592,2]
[386565836,1758396696554,-661.50603668,0.00020592,2]
[386565837,1758396696681,-331.05396332,0.00020592,2]
[386565838,1758396706316,-752.33,0.0002049,2]
[386565839,1758396706346,-480.0,0.00020583,2]
[386565840,1758396706375,-480.0,0.00020591,2]
[386565841,1758396706404,-480.0,0.00020592,2]
[386565842,1758396706433,-480.0,0.00020592,2]
[386565843,1758396706461,-480.0,0.00020593,2]
[386565844,1758396706490,-480.0,0.00020593,2]
[386565845,1758396706520,-480.0,0.00020593,2]
[386565846,1758396706550,-480.0,0.00020594,2]
[386565847,1758396706579,-335.35,0.00020594,2]
[386565848,1758396706719,-144.65,0.00020594,2]
[386565849,1758396716351,-589.64046245,0.00020582,2]
[386565850,1758396716379,-500.0,0.00020582,2]
[386565851,1758396716407,-480.0,0.00020583,2]
[386565852,1758396716436,-894.85,0.00020591,2]
[386565853,1758396716465,-480.0,0.00020592,2]
[386565854,1758396716493,-480.0,0.00020594,2]
[386565855,1758396716521,-480.0,0.00020594,2]
[386565856,1758396716549,-525.41443852,0.00020594,2]
[386565857,1758396716578,-480.0,0.00020594,2]
[386565858,1758396716606,-29.20019806,0.00020595,2]
[386565859,1758396716769,-121.79980194,0.0002049,2]
[386565860,1758396729488,215.74,0.00019231,2]
[386565861,1758396729928,431.49,0.00020147,2]
[386565862,1758396756556,-803.11019806,0.0002049,2]
[386565863,1758396756585,-480.0,0.0002049,2]
[386565864,1758396756615,-1737.06,0.0002049,2]
[386565865,1758396756644,-438.93918859,0.0002049,2]
[386565866,1758396756672,-1200.0,0.00020581,2]
[386565867,1758396758342,681.7912267,0.0002049,2]
[386565868,1758396766420,-302.6487733,0.0002049,2]
[386565869,1758396766448,-480.0,0.0002049,2]
[386565870,1758396766476,-480.0,0.00020583,2]
[386565871,1758396766505,-481.61529543,0.00020583,2]
[386565872,1758396766533,-890.82,0.00020591,2]
[386565873,1758396766563,-480.0,0.00020591,2]
[386565874,1758396766592,-480.0,0.00020591,2]
[386565875,1758396766620,-172.57238634,0.00020591,2]
[386565876,1758396766649,-500.0,0.00020591,2]
[386565877,1758396766678,-256.34322147,0.00020591,2]
[386565878,1758396766709,-452.01064692,0.00020591,2]
[386565879,1758396776495,-47.98935308,0.00020591,2]
[386565880,1758396776527,-500.0,0.00020591,2]
[386565881,1758396776558,-500.0,0.00020591,2]
[386565882,1758396776587,-180.0,0.00020591,2]
[386565883,1758396776618,-500.0,0.00020591,2]
[386565884,1758396776649,-362.33459256,0.00020591,2]
[386565885,1758396776679,-500.0,0.00020591,2]
[386565886,1758396776710,-500.0,0.00020591,2]
[386565887,1758396776740,-500.0,0.00020591,2]
[386565888,1758396776770,-500.0,0.00020591,2]
[386565889,1758396776801,-500.0,0.00020591,2]
[386565890,1758396776832,-319.36210872,0.00020591,2]
[386565891,1758396780080,1359.292787,0.00019756,2]
[386565892,1758396786430,-480.0,0.00020583,2]
[386565893,1758396786459,-480.0,0.00020583,2]
[386565894,1758396786488,-300.0,0.0002059,2]
[386565895,1758396786519,-180.63789128,0.00020591,2]
[386565896,1758396786550,-372.82999871,0.00020591,2]
[386565897,1758396786582,-550.44957013,0.00020591,2]
[386565898,1758396786615,-500.0,0.00020591,2]
[386565899,1758396786648,-500.0,0.00020591,2]
[386565900,1758396786678,-480.0,0.00020591,2]
[386565901,1758396786706,-480.0,0.00020592,2]
[386565902,1758396786735,-480.0,0.00020592,2]
[386565903,1758396808224,1000.0,0.00019692,2]
[386565904,1758396809688,212.06,0.0001924,2]
[386565905,1758396810984,3102.83265345,0.000199,2]
[386565906,1758396813065,-271.19069471,0.00020156,2]
[386565907,1758396813180,5685.11734655,0.00019692,2]
[386565908,1758396813204,4314.88265345,0.00019692,2]
[386565909,1758396814157,739.1649049,0.00019692,2]
[386565910,1758396816837,-152.93930529,0.00020156,2]
[386565911,1758396889544,203.97,0.00019234,2]
[386565912,1758396890502,407.93,0.0002015,2]
[386565913,1758396946601,167.2998927,9.784e-05,2]
[386565914,1758396972615,196.18,0.00019232,2]